fUST/lending_fUST_20240701
["ID","MTS","AMOUNT","RATE_DAILY","PERIOD"]
[330788556,1719785443860,-500.0,0.00015018,2]
[330788557,1719785443870,-500.0,0.00015018,2]
[330788558,1719785443880,-500.0,0.00015018,2]
[330788559,1719785443890,-500.0,0.00015018,2]
[330788560,1719785443900,-500.0,0.00015018,2]
[330788561,1719785443910,-500.0,0.00015018,2]
[330788562,1719785443920,-500.0,0.00015018,2]
[330788563,1719785443931,-500.0,0.00015018,2]
[330788564,1719785443940,-500.0,0.00015018,2]
[330788565,1719785443950,-500.0,0.00015018,2]
[330788566,1719785443960,-500.0,0.00015018,2]
[330788567,1719785443971,-500.0,0.00015018,2]
[330788568,1719785443980,-500.0,0.00015018,2]
[330788569,1719785443990,-500.0,0.00015018,2]
[330788570,1719785443999,-500.0,0.00015018,2]
[330788571,1719785444009,-535.6,0.00015018,2]
[330788572,1719785444019,-500.0,0.00015018,2]
[330788573,1719785444028,-500.0,0.00015018,2]
[330788574,1719785444037,-500.0,0.00015018,2]
[330788575,1719785444047,-500.0,0.00015018,2]
[330788576,1719785444056,-500.0,0.00015018,2]
[330788577,1719785444066,-500.0,0.00015018,2]
[330788578,1719785444075,-500.0,0.00015018,2]
[330788579,1719785444084,-257.73467026,0.00015018,2]
[330788580,1719785444094,-500.0,0.00015018,2]
[330788581,1719785444103,-500.0,0.00015018,2]
[330788582,1719785444112,-502.52302626,0.00015018,2]
[330788583,1719785444122,-672.5,0.00015018,2]
[330788584,1719785444131,-500.0,0.00015018,2]
[330788585,1719785444140,-500.0,0.00015018,2]
[330788586,1719785444150,-500.0,0.00015018,2]
[330788587,1719785444160,-500.0,0.00015018,2]
[330788588,1719785444169,-500.0,0.00015018,2]
[330788589,1719785444179,-500.0,0.00015018,2]
[330788590,1719785444188,-500.0,0.00015018,2]
[330788591,1719785444198,-500.0,0.00015018,2]
[330788592,1719785444207,-500.0,0.00015018,2]
[330788593,1719785444217,-500.0,0.00015018,2]
[330788594,1719785444227,-500.0,0.00015018,2]
[330788595,1719785444236,-500.0,0.00015018,2]
[330788596,1719785444246,-500.0,0.00015018,2]
[330788597,1719785444255,-500.0,0.00015018,2]
[330788598,1719785444265,-7088.09,0.00015018,2]
[330788599,1719785444274,-501.17690381,0.00015018,2]
[330788600,1719785444283,-500.0,0.00015018,2]
[330788601,1719785444292,-500.0,0.00015018,2]
[330788602,1719785444302,-500.0,0.00015018,2]
[330788603,1719785444311,-500.0,0.00015018,2]
[330788604,1719785444322,-500.0,0.00015018,2]
[330788605,1719785444332,-500.0,0.00015018,2]
[330788606,1719785444345,-500.0,0.00015018,2]
[330788607,1719785444354,-500.0,0.00015018,2]
[330788608,1719785444363,-500.0,0.00015018,2]
[330788609,1719785444373,-500.0,0.00015018,2]
[330788610,1719785444383,-500.0,0.00015018,2]
[330788611,1719785444392,-500.0,0.00015018,2]
[330788612,1719785444402,-227.81582579,0.00015018,2]
[330788613,1719785444411,-500.0,0.00015018,2]
[330788614,1719785444425,-604.36,0.00015018,2]
[330788615,1719785444436,-500.0,0.00015018,2]
[330788616,1719785444445,-501.71540234,0.00015018,2]
[330788617,1719785444455,-1382.84,0.00015018,2]
[330788618,1719785444466,-500.0,0.00015018,2]
[330788619,1719785444477,-500.0,0.00015018,2]
[330788620,1719785444486,-500.0,0.00015018,2]
[330788621,1719785444495,-500.0,0.00015018,2]
[330788622,1719785444505,-500.0,0.00015018,2]
[330788623,1719785444515,-500.0,0.00015018,2]
[330788624,1719785444523,-502.50844796,0.00015018,2]
[330788625,1719785444533,-500.0,0.00015018,2]
[330788626,1719785444542,-375.64,0.00015018,2]
[330788627,1719785444551,-500.0,0.00015018,2]
[330788628,1719785444561,-500.0,0.00015018,2]
[330788629,1719785444571,-500.0,0.00015018,2]
[330788630,1719785444580,-500.0,0.00015018,2]
[330788631,1719785444589,-808.9,0.00015018,2]
[330788632,1719785444599,-500.0,0.00015018,2]
[330788633,1719785444608,-500.0,0.00015018,2]
[330788634,1719785444617,-500.0,0.00015018,2]
[330788635,1719785444626,-500.0,0.00015018,2]
[330788636,1719785444636,-500.0,0.00015018,2]
[330788637,1719785444645,-572.8,0.00015018,2]
[330788638,1719785444655,-500.0,0.00015018,2]
[330788639,1719785444665,-500.0,0.00015018,2]
[330788640,1719785444676,-500.0,0.00015018,2]
[330788641,1719785444686,-192.29668673,0.00015018,2]
[330788642,1719785444695,-500.0,0.00015018,2]
[330788643,1719785444705,-500.0,0.00015018,2]
[330788644,1719785444715,-500.0,0.00015018,2]
[330788645,1719785444725,-500.0,0.00015018,2]
[330788646,1719785444735,-500.0,0.00015018,2]
[330788647,1719785444745,-500.0,0.00015018,2]
[330788648,1719785444755,-500.0,0.00015018,2]
[330788649,1719785444867,-500.0,0.00015018,2]
[330788650,1719785444876,-603.29,0.00015018,2]
[330788651,1719785444886,-501.99474033,0.00015018,2]
[330788652,1719785444895,-500.0,0.00015018,2]
[330788653,1719785444905,-500.0,0.00015018,2]
[330788654,1719785444914,-500.0,0.00015018,2]
[330788655,1719785444924,-500.0,0.00015018,2]
[330788656,1719785444934,-500.0,0.00015018,2]
[330788657,1719785444943,-500.0,0.00015018,2]
[330788658,1719785444953,-500.8820583,0.00015018,2]
[330788659,1719785444963,-500.0,0.00015018,2]
[330788660,1719785444972,-500.0,0.00015018,2]
[330788661,1719785444981,-728.6,0.00015018,2]
[330788662,1719785444991,-502.45195742,0.00015018,2]
[330788663,1719785445000,-363.23504351,0.00015018,2]
[330788664,1719785445014,-143.93373433,0.00015018,2]
[330788665,1719785445024,-500.0,0.00015018,2]
[330788666,1719785445033,-500.0,0.00015018,2]
[330788667,1719785445043,-492.39499057,0.00015018,2]
[330788668,1719785445053,-992.74,0.00015018,2]
[330788669,1719785445063,-500.0,0.00015018,2]
[330788670,1719785445072,-500.0,0.00015018,2]
[330788671,1719785445082,-516.14600134,0.00015018,2]
[330788672,1719785445092,-500.0,0.00015018,2]
[330788673,1719785445102,-500.0,0.00015018,2]
[330788674,1719785445112,-10085.06,0.00015018,2]
[330788675,1719785445121,-500.0,0.00015018,2]
[330788676,1719785445131,-500.0,0.00015018,2]
[330788677,1719785445140,-500.0,0.00015018,2]
[330788678,1719785445150,-500.0,0.00015018,2]
[330788679,1719785445159,-500.0,0.00015019,2]
[330788680,1719785445169,-500.0,0.00015019,2]
[330788681,1719785445179,-500.0,0.00015019,2]
[330788682,1719785445188,-500.0,0.00015019,2]
[330788683,1719785445198,-500.0,0.00015019,2]
[330788684,1719785445207,-356.38270483,0.00015019,2]
[330788685,1719785445216,-501.62247618,0.00015019,2]
[330788686,1719785445227,-497.15790926,0.00015019,2]
[330788687,1719785445236,-500.0,0.00015019,2]
[330788688,1719785445247,-1210.98,0.00015019,2]
[330788689,1719785445256,-5839.28,0.00015019,2]
[330788690,1719785445265,-500.0,0.00015019,2]
[330788691,1719785445275,-500.0,0.00015019,2]
[330788692,1719785445286,-1184.08,0.0001502,2]
[330788693,1719785445295,-500.0,0.0001502,2]
[330788694,1719785445306,-818.9,0.0001502,2]
[330788695,1719785445316,-835.87,0.0001502,2]
[330788696,1719785445326,-9155.2,0.0001502,2]
[330788697,1719785445339,-5286.34479944,0.00015146,2]
[330788698,1719785445354,-153.0,0.00015373,2]
[330788699,1719785445363,-153.0,0.00015374,2]
[330788700,1719785445372,-114.90071159,0.00015374,2]
[330788709,1719785659134,154.0125853,0.00014915,2]
[330788710,1719785702004,154.83742071,0.00014999,2]
[330788711,1719785708620,1189.0,0.00015,2]
[330788715,1719785840434,262.54771956,0.00014915,2]
[330788716,1719785847865,154.83742071,0.00014999,2]
[330788718,1719785909601,154.0125853,0.00014914,2]
[330788719,1719785997940,154.83742071,0.00014999,2]
[330788721,1719786057883,2825.49865465,0.00015,2]
[330788722,1719786110584,154.0125853,0.00014914,2]
[330788725,1719786266439,154.0125853,0.00014913,2]
[330788727,1719786442017,154.0125853,0.00014913,2]
[330788733,1719786543945,-300.0,0.00015011,2]
[330788734,1719786543977,-300.0,0.00015011,2]
[330788735,1719786544008,-131.42040531,0.00015012,2]
[330788736,1719786544054,-350.69558039,0.00015012,2]
[330788739,1719786568211,-753.06272502,0.00015012,2]
[330788740,1719786568264,-753.06272502,0.00015012,2]
[330788742,1719786593375,-783.18523402,0.00015012,2]
[330788743,1719786593424,-538.75125885,0.00015012,2]
[330788793,1719786634479,-300.0,0.00015011,2]
[330788795,1719786634491,-13.92,0.00015012,2]
[330789067,1719786639728,-904.23,0.00015012,2]
[330789068,1719786639743,-500.0,0.00015012,2]
[330789069,1719786639754,-475.80574559,0.00015012,2]
[330789070,1719786639766,-2532.79312007,0.00015012,2]
[330789071,1719786639780,-306.40687993,0.00015012,2]
[330789072,1719786639793,-718.98804169,0.00015012,2]
[330789073,1719786639810,-2064.93195831,0.00015012,2]
[330789074,1719786639821,-1375.46,0.00015012,2]
[330789075,1719786639832,-500.0,0.00015012,2]
[330789076,1719786639843,-500.0,0.00015012,2]
[330789077,1719786639854,-1453.32,0.00015012,2]
[330789078,1719786639864,-1253.55,0.00015012,2]
[330789079,1719786639876,-5086.11,0.00015012,2]
[330789080,1719786639886,-500.0,0.00015012,2]
[330789081,1719786639897,-1120.49,0.00015012,2]
[330789082,1719786639908,-500.0,0.00015012,2]
[330789083,1719786639919,-533.74,0.00015012,2]
[330789084,1719786639928,-6872.05379553,0.00015012,2]
[330789085,1719786639942,-625.44716545,0.00015012,2]
[330789086,1719786639956,-1847.64465184,0.00015012,2]
[330789087,1719786639969,-1179.96438718,0.00015012,2]
[330789089,1719786639980,-1547.88,0.00015012,2]
[330789091,1719786639995,-1483.90363106,0.00015012,2]
[330789092,1719786640007,-1490.36636894,0.00015012,2]
[330789093,1719786640018,-500.0,0.00015012,2]
[330789094,1719786640028,-500.0,0.00015012,2]
[330789095,1719786640040,-606.43,0.00015012,2]
[330789096,1719786640049,-648.99,0.00015012,2]
[330789097,1719786640060,-500.0,0.00015012,2]
[330789098,1719786640070,-1760.57,0.00015012,2]
[330789099,1719786640081,-500.0,0.00015013,2]
[330789100,1719786640092,-1168.21,0.00015013,2]
[330789101,1719786640103,-500.0,0.00015013,2]
[330789102,1719786640114,-500.0,0.00015013,2]
[330789103,1719786640124,-500.0,0.00015013,2]
[330789104,1719786640135,-1442.4,0.00015013,2]
[330789105,1719786640146,-500.0,0.00015013,2]
[330789106,1719786640157,-500.0,0.00015013,2]
[330789107,1719786640169,-1334.3,0.00015013,2]
[330789108,1719786640179,-500.0,0.00015013,2]
[330789109,1719786640190,-1847.4,0.00015013,2]
[330789110,1719786640200,-500.0,0.00015013,2]
[330789111,1719786640211,-596.27,0.00015013,2]
[330789112,1719786640222,-1058.29,0.00015013,2]
[330789113,1719786640232,-500.0,0.00015013,2]
[330789114,1719786640427,-1100.44,0.00015013,2]
[330789115,1719786640438,-500.0,0.00015013,2]
[330789116,1719786640449,-500.0,0.00015013,2]
[330789117,1719786640459,-500.0,0.00015013,2]
[330789118,1719786640470,-500.0,0.00015013,2]
[330789119,1719786640481,-500.0,0.00015013,2]
[330789120,1719786640494,-500.0,0.00015013,2]
[330789121,1719786640505,-500.0,0.00015013,2]
[330789122,1719786640515,-606.42,0.00015013,2]
[330789123,1719786640525,-556.34,0.00015013,2]
[330789124,1719786640535,-500.0,0.00015013,2]
[330789125,1719786640546,-500.0,0.00015013,2]
[330789126,1719786640556,-500.0,0.00015013,2]
[330789127,1719786640567,-1500.47523918,0.00015013,2]
[330789128,1719786640582,-6267.61476082,0.00015013,2]
[330789130,1719786640593,-456.89,0.00015013,2]
[330789132,1719786640602,-261.73362297,0.00015013,2]
[330789206,1719786643221,-879.9,0.00015012,2]
[330789209,1719786643231,-238.26637703,0.00015013,2]
[330789213,1719786643243,-2448.1,0.00015013,2]
[330789215,1719786643253,-555.69,0.00015013,2]
[330789218,1719786643264,-500.0,0.00015013,2]
[330789221,1719786643274,-1100.33,0.00015013,2]
[330789224,1719786643284,-500.0,0.00015013,2]
[330789227,1719786643294,-540.73,0.00015013,2]
[330789230,1719786643303,-548.18555462,0.00015013,2]
[330789233,1719786643312,-663.59,0.00015013,2]
[330789236,1719786643322,-209.59,0.00015013,2]
[330789239,1719786643331,-587.23,0.00015013,2]
[330789242,1719786643341,-968.63,0.00015013,2]
[330789245,1719786643350,-577.78,0.00015013,2]
[330789248,1719786643359,-500.0,0.00015013,2]
[330789250,1719786643369,-680.62,0.00015013,2]
[330789253,1719786643379,-500.0,0.00015013,2]
[330789256,1719786643389,-1213.25,0.00015013,2]
[330789259,1719786643399,-500.0,0.00015013,2]
[330789262,1719786643408,-674.49,0.00015013,2]
[330789264,1719786643418,-500.0,0.00015013,2]
[330789265,1719786643428,-500.0,0.00015013,2]
[330789266,1719786643437,-10699.49,0.00015013,2]
[330789268,1719786643447,-523.47,0.00015013,2]
[330789270,1719786643457,-500.0,0.00015013,2]
[330789272,1719786643466,-500.0,0.00015013,2]
[330789274,1719786643475,-1265.94,0.00015013,2]
[330789276,1719786643485,-620.97,0.00015013,2]
[330789278,1719786643497,-824.89,0.00015013,2]
[330789279,1719786643507,-500.0,0.00015013,2]
[330789282,1719786643517,-4851.05,0.00015013,2]
[330789284,1719786643527,-500.0,0.00015013,2]
[330789286,1719786643537,-500.0,0.00015013,2]
[330789288,1719786643546,-500.0,0.00015013,2]
[330789290,1719786643556,-500.0,0.00015013,2]
[330789292,1719786643566,-500.0,0.00015013,2]
[330789295,1719786643576,-500.0,0.00015014,2]
[330789297,1719786643586,-500.0,0.00015014,2]
[330789299,1719786643596,-254.94,0.00015014,2]
[330789301,1719786643605,-500.0,0.00015014,2]
[330789302,1719786643615,-500.0,0.00015014,2]
[330789304,1719786643624,-500.0,0.00015014,2]
[330789306,1719786643635,-500.0,0.00015014,2]
[330789308,1719786643644,-500.0,0.00015014,2]
[330789310,1719786643654,-500.0,0.00015014,2]
[330789312,1719786643664,-500.0,0.00015014,2]
[330789314,1719786643674,-500.0,0.00015014,2]
[330789316,1719786643683,-500.0,0.00015014,2]
[330789318,1719786643694,-605.76,0.00015014,2]
[330789319,1719786643707,-500.0,0.00015014,2]
[330789320,1719786643717,-500.0,0.00015014,2]
[330789321,1719786643726,-500.0,0.00015014,2]
[330789322,1719786643736,-500.0,0.00015014,2]
[330789323,1719786643748,-500.0,0.00015014,2]
[330789324,1719786643758,-500.0,0.00015014,2]
[330789325,1719786643767,-500.0,0.00015014,2]
[330789327,1719786643776,-500.0,0.00015014,2]
[330789329,1719786643789,-500.0,0.00015014,2]
[330789330,1719786643798,-301.98650869,0.00015014,2]
[330789331,1719786643812,-198.01349131,0.00015014,2]
[330789332,1719786643822,-500.0,0.00015014,2]
[330789333,1719786643833,-500.0,0.00015014,2]
[330789334,1719786643843,-500.0,0.00015014,2]
[330789335,1719786643852,-956.58,0.00015014,2]
[330789336,1719786643862,-500.0,0.00015014,2]
[330789337,1719786643872,-533.21,0.00015014,2]
[330789338,1719786643882,-437.71036704,0.00015014,2]
[330789339,1719786643892,-500.0,0.00015014,2]
[330789340,1719786643902,-624.20580171,0.00015014,2]
[330789341,1719786643914,-609.30419829,0.00015014,2]
[330789342,1719786643924,-500.0,0.00015014,2]
[330789343,1719786643934,-500.0,0.00015014,2]
[330789344,1719786643943,-500.0,0.00015014,2]
[330789345,1719786643953,-500.0,0.00015014,2]
[330789346,1719786643962,-500.0,0.00015014,2]
[330789347,1719786643972,-500.0,0.00015014,2]
[330789348,1719786643981,-500.0,0.00015014,2]
[330789349,1719786643992,-500.0,0.00015014,2]
[330789350,1719786644003,-500.0,0.00015014,2]
[330789351,1719786644012,-500.0,0.00015014,2]
[330789352,1719786644022,-500.0,0.00015014,2]
[330789353,1719786644031,-500.0,0.00015014,2]
[330789355,1719786644040,-500.0,0.00015014,2]
[330789356,1719786644049,-500.0,0.00015014,2]
[330789357,1719786644059,-500.0,0.00015014,2]
[330789358,1719786644068,-500.0,0.00015014,2]
[330789360,1719786644078,-915.73,0.00015014,2]
[330789362,1719786644087,-500.0,0.00015014,2]
[330789363,1719786644097,-500.0,0.00015014,2]
[330789364,1719786644109,-500.0,0.00015014,2]
[330789365,1719786644118,-500.0,0.00015014,2]
[330789366,1719786644128,-500.0,0.00015014,2]
[330789367,1719786644138,-500.0,0.00015014,2]
[330789368,1719786644147,-507.81596062,0.00015014,2]
[330789369,1719786644157,-500.0,0.00015014,2]
[330789370,1719786644167,-1036.68,0.00015014,2]
[330789371,1719786644178,-500.0,0.00015014,2]
[330789372,1719786644188,-500.0,0.00015014,2]
[330789373,1719786644198,-500.0,0.00015014,2]
[330789374,1719786644208,-500.0,0.00015014,2]
[330789375,1719786644218,-500.0,0.00015014,2]
[330789376,1719786644228,-500.0,0.00015014,2]
[330789377,1719786644237,-682.4,0.00015014,2]
[330789378,1719786644248,-500.0,0.00015014,2]
[330789379,1719786644257,-500.0,0.00015014,2]
[330789380,1719786644266,-500.0,0.00015014,2]
[330789381,1719786644275,-500.0,0.00015014,2]
[330789382,1719786644284,-500.0,0.00015014,2]
[330789383,1719786644293,-775.2,0.00015014,2]
[330789384,1719786644303,-500.0,0.00015014,2]
[330789385,1719786644312,-500.0,0.00015014,2]
[330789386,1719786644321,-500.0,0.00015014,2]
[330789387,1719786644330,-506.06433584,0.00015014,2]
[330789388,1719786644339,-452.07317338,0.00015014,2]
[330789389,1719786644523,-1669.85,0.00015013,2]
[330789390,1719786644533,-61.20682662,0.00015014,2]
[330789391,1719786644544,-500.0,0.00015014,2]
[330789392,1719786644554,-155.01792194,0.00015014,2]
[330789408,1719786655606,373.93,0.00010959,2]
[330789412,1719786776705,302.18198335,0.00014999,2]
[330789413,1719786799901,150.83408251,0.00020462,30]
[330789422,1719787039926,1171.0897443,0.0001,2]
[330789427,1719787081233,300.0,0.0001501,2]
[330789429,1719787082535,300.0,0.0001501,2]
[330789437,1719787135558,3000.0,0.00025,120]
[330789438,1719787141272,300.0,0.0001501,2]
[330789439,1719787142685,300.0,0.0001501,2]
[330789440,1719787201008,300.0,0.0001501,2]
[330789441,1719787204439,300.0,0.0001501,2]
[330789442,1719787261130,300.0,0.0001501,2]
[330789444,1719787309757,2966.9686185,0.00014014,2]
[330789445,1719787320892,300.0,0.0001501,2]
[330789448,1719787380903,300.0,0.0001501,2]
[330789449,1719787396898,5286.34479944,0.00014616,2]
[330789451,1719787441050,300.0,0.0001501,2]
[330789452,1719787453779,1395.67,0.0001501,2]
[330789453,1719787485846,500.0,0.0001501,2]
[330789454,1719787494423,1343.07,0.0001501,2]
[330789455,1719787501033,300.0,0.0001501,2]
[330789456,1719787514274,525.01487892,0.00014999,2]
[330789457,1719787514528,521.67,0.0001501,2]
[330789458,1719787526484,8825.74,0.0001501,2]
[330789459,1719787535214,627.56,0.0001501,2]
[330789460,1719787538370,1483.38,0.0001501,2]
[330789461,1719787541502,500.0,0.0001501,2]
[330789462,1719787549866,2850.35,0.0001501,2]
[330789463,1719787561208,300.0,0.0001501,2]
[330789464,1719787569112,500.0,0.0001501,2]
[330789465,1719787586579,843.24,0.0001501,2]
[330789466,1719787596063,20039.22723143,0.00014897,2]
[330789467,1719787607583,500.0,0.0001501,2]
[330789468,1719787621065,300.0,0.0001501,2]
[330789469,1719787627281,500.0,0.0001501,2]
[330789470,1719787628597,155.06488944,0.00014999,2]
[330789471,1719787633772,2720.9,0.0001501,2]
[330789472,1719787635264,500.0,0.0001501,2]
[330789473,1719787639125,500.0,0.0001501,2]
[330789475,1719787649318,2667.92,0.0001501,2]
[330789476,1719787649935,543.82,0.0001501,2]
[330789477,1719787657378,10253.67,0.0001501,2]
[330789478,1719787657719,500.0,0.0001501,2]
[330789479,1719787662100,1318.15,0.0001501,2]
[330789480,1719787674099,500.0,0.0001501,2]
[330789481,1719787676152,500.0,0.0001501,2]
[330789482,1719787680917,300.0,0.0001501,2]
[330789483,1719787682230,500.0,0.0001501,2]
[330789484,1719787684832,500.0,0.0001501,2]
[330789485,1719787687508,1337.52,0.0001501,2]
[330789486,1719787688952,800.88,0.0001501,2]
[330789487,1719787708762,500.0,0.0001501,2]
[330789488,1719787710997,4878.03,0.0001501,2]
[330789489,1719787718960,500.0,0.0001501,2]
[330789490,1719787722040,500.0,0.0001501,2]
[330789491,1719787728315,1287.11,0.0001501,2]
[330789492,1719787741314,300.0,0.0001501,2]
[330789493,1719787747524,500.0,0.0001501,2]
[330789494,1719787747751,-500.0,0.00015011,2]
[330789495,1719787747783,-214.61505335,0.00015011,2]
[330789496,1719787747901,-186.55237522,0.00015011,2]
[330789497,1719787750148,500.0,0.0001501,2]
[330789498,1719787758234,9718.82,0.0001501,2]
[330789499,1719787761721,580.52,0.0001501,2]
[330789500,1719787762866,511.5,0.0001501,2]
[330789501,1719787763867,566.62,0.0001501,2]
[330789502,1719787768777,1421.57,0.0001501,2]
[330789503,1719787772001,601.42,0.0001501,2]
[330789504,1719787772897,-718.36257143,0.00015011,2]
[330789505,1719787772928,-14.27583049,0.00015011,2]
[330789506,1719787772966,-413.68165895,0.00015011,2]
[330789507,1719787780309,2731.58,0.0001501,2]
[330789508,1719787780356,500.0,0.0001501,2]
[330789509,1719787784374,4648.92,0.0001501,2]
[330789510,1719787790278,500.0,0.0001501,2]
[330789511,1719787797662,-72.04251056,0.00015011,2]
[330789512,1719787797692,-499.85217843,0.00015011,2]
[330789513,1719787797722,-183.67011415,0.00015011,2]
[330789514,1719787797760,-316.32988585,0.00015011,2]
[330789515,1719787797790,-182.614556,0.00015011,2]
[330789516,1719787799430,500.0,0.0001501,2]
[330789517,1719787801161,300.0,0.0001501,2]
[330789518,1719787805098,1130.7,0.0001501,2]
[330789519,1719787808591,576.36,0.0001501,2]
[330789520,1719787808881,1600.27,0.0001501,2]
[330789521,1719787811352,244.36,0.0001501,2]
[330789522,1719787816131,1687.21,0.0001501,2]
[330789523,1719787816339,808.1,0.0001501,2]
[330789524,1719787820505,500.0,0.0001501,2]
[330789525,1719787821320,500.0,0.0001501,2]
[330789526,1719787826607,553.7,0.0001501,2]
[330789527,1719787826905,7444.42,0.0001501,2]
[330789560,1719787833296,-1199.685444,0.00015011,2]
[330789561,1719787833307,-500.0,0.00015011,2]
[330789562,1719787833316,-500.0,0.00015011,2]
[330789563,1719787833326,-500.0,0.00015011,2]
[330789564,1719787833335,-500.0,0.00015011,2]
[330789565,1719787833344,-1278.71,0.00015011,2]
[330789566,1719787833354,-1770.43,0.00015011,2]
[330789567,1719787833363,-500.0,0.00015011,2]
[330789568,1719787833372,-500.0,0.00015011,2]
[330789569,1719787833382,-500.0,0.00015011,2]
[330789570,1719787833391,-571.42,0.00015011,2]
[330789571,1719787833400,-1086.84,0.00015011,2]
[330789572,1719787833408,-500.0,0.00015011,2]
[330789573,1719787833418,-966.7,0.00015011,2]
[330789574,1719787833427,-508.02,0.00015011,2]
[330789575,1719787833436,-581.15,0.00015011,2]
[330789576,1719787833445,-500.0,0.00015011,2]
[330789577,1719787833454,-500.0,0.00015011,2]
[330789578,1719787833464,-500.0,0.00015011,2]
[330789579,1719787833473,-500.0,0.00015011,2]
[330789580,1719787833483,-500.0,0.00015011,2]
[330789581,1719787833491,-500.0,0.00015011,2]
[330789582,1719787833501,-193.42,0.00015011,2]
[330789583,1719787833511,-533.16,0.00015011,2]
[330789584,1719787833519,-532.53,0.00015011,2]
[330789585,1719787833529,-500.0,0.00015011,2]
[330789586,1719787833538,-878.73,0.00015011,2]
[330789587,1719787833547,-2346.1,0.00015011,2]
[330789588,1719787833556,-518.2,0.00015011,2]
[330789589,1719787833565,-635.94,0.00015011,2]
[330789590,1719787833574,-500.0,0.00015011,2]
[330789591,1719787833583,-562.77,0.00015011,2]
[330789592,1719787833592,-816.37125784,0.00015011,2]
[330789593,1719787833626,500.0,0.0001501,2]
[330789594,1719787833669,500.0,0.0001501,2]
[330789595,1719787833756,1072.89,0.0001501,2]
[330789596,1719787837608,500.0,0.0001501,2]
[330789651,1719787839205,-111.89874216,0.00015011,2]
[330789654,1719787839215,-266.24425787,0.00015011,2]
[330789678,1719787840823,-386.01574213,0.00015011,2]
[330789680,1719787840833,-1162.7,0.00015011,2]
[330789682,1719787840843,-646.39,0.00015011,2]
[330789684,1719787840852,-500.0,0.00015011,2]
[330789686,1719787840862,-500.0,0.00015011,2]
[330789688,1719787840872,-500.0,0.00015011,2]
[330789690,1719787840881,-1213.19,0.00015011,2]
[330789692,1719787840891,-500.0,0.00015011,2]
[330789694,1719787840900,-500.0,0.00015011,2]
[330789696,1719787840909,-500.0,0.00015011,2]
[330789698,1719787840919,-500.0,0.00015011,2]
[330789700,1719787840928,-500.0,0.00015011,2]
[330789702,1719787840938,-561.59,0.00015011,2]
[330789704,1719787840948,-642.85,0.00015011,2]
[330789706,1719787840957,-500.0,0.00015012,2]
[330789708,1719787840967,-500.0,0.00015012,2]
[330789710,1719787840977,-500.0,0.00015012,2]
[330789712,1719787840986,-916.72,0.00015012,2]
[330789714,1719787840996,-500.0,0.00015012,2]
[330789715,1719787841006,-500.0,0.00015012,2]
[330789716,1719787841015,-790.52,0.00015012,2]
[330789717,1719787841025,-500.0,0.00015012,2]
[330789718,1719787841034,-500.0,0.00015012,2]